bitfinex/quotes_ETHUSD_20250905
["timestamp","ask_amount","ask_price","bid_price","bid_amount"]
[1757081961749,0.26692029,4361.3,4360.8,0.025]
[1757081962084,0.26692029,4360.9,4360.8,0.025]
[1757081962288,0.26692029,4361.2,4360.9,0.4367]
[1757081962595,1.691,4363.6,4361.0,1.3428]
[1757081962899,0.26692029,4361.1,4360.8,0.029]
[1757081963250,3.08510463,4360.9,4360.8,0.029]
[1757081963449,3.59872253,4360.9,4360.8,0.029]
[1757081963644,2.32176843,4360.9,4360.8,0.029]
[1757081963874,0.26692029,4361.1,4360.8,0.029]
[1757081964468,0.48906315,4361.0,4360.8,0.029]
[1757081964671,0.26692029,4361.1,4360.8,0.029]
[1757081964872,0.26692029,4361.9,4360.9,1.3428]
[1757081965076,0.1144,4363.0,4361.4,2.29280541]
[1757081965372,0.26692029,4361.9,4361.0,1.2725928]
[1757081965682,2.1504,4363.3,4360.8,0.029]
[1757081965683,0.26692029,4361.5,4360.8,0.029]
[1757081965884,0.02864869,4363.2,4360.9,0.4367]
[1757081966183,1.69,4363.3,4361.1,2.29299511]
[1757081966184,0.26692029,4362.6,4361.1,2.29299511]
[1757081966383,0.26692029,4360.9,4360.8,0.029]
[1757081966686,0.26692029,4359.3,4356.6,0.9061]
[1757081966982,5.5616035,4357.9,4357.8,1e-08]
[1757081967181,2.56213018,4356.9,4355.8,0.025]
[1757081967382,3.3828203,4356.9,4355.8,0.025]
[1757081967560,0.26692029,4356.9,4355.8,0.025]
[1757081967956,0.26692029,4357.0,4355.8,0.025]
[1757081968286,1.69,4359.0,4356.7,0.9061]
[1757081968486,1.69,4359.0,4355.8,0.025]
[1757081968487,2.2941285,4359.0,4356.9,1.3428]
[1757081968661,0.26692029,4357.6,4357.0,0.13678]
[1757081969055,0.26692029,4358.6,4357.1,0.4367]
[1757081969255,0.26692029,4358.0,4357.1,0.9061]
[1757081969486,1.69,4359.5,4357.1,0.9061]
[1757081969783,0.26692029,4358.6,4357.1,0.9061]
[1757081969971,1.69,4359.5,4357.2,0.13428]
[1757081970172,1.69,4359.5,4357.4,2.29494652]
[1757081970505,0.26692029,4360.0,4357.5,1.3428]
[1757081970652,0.26692029,4360.6,4359.0,2.29409044]
[1757081970854,0.025,4359.8,4359.6,2.29378068]
[1757081971182,0.26692029,4357.5,4355.7,0.9061]
[1757081971353,0.26692029,4357.5,4355.3,0.4367]
[1757081971354,2.29520989,4356.9,4355.0,0.11]
[1757081971685,2.78430001,4356.9,4355.0,0.11]
[1757081971890,6.71140001,4356.9,4355.0,0.11]
[1757081972097,2.5626571,4355.9,4355.0,0.11]
[1757081972393,0.26692029,4355.9,4355.0,0.11]
[1757081972578,0.26692029,4356.3,4355.1,2.29615521]
[1757081972788,0.26692029,4356.8,4355.1,0.4367]
[1757081972989,0.26692029,4356.7,4355.3,0.9061]
[1757081973293,0.26692029,4356.6,4355.3,1.3428]
[1757081973500,0.26692029,4356.1,4355.3,1.3428]
[1757081973702,0.26692029,4357.0,4355.3,3.63883397]
[1757081973990,0.26692029,4356.8,4355.3,1.3428]
[1757081974158,0.26692029,4356.3,4355.3,1.3428]
[1757081974367,0.4604,4357.7,4355.3,1.3428]
[1757081974368,0.26692029,4356.8,4355.3,1.3428]
[1757081974566,0.26692029,4357.2,4355.3,1.3428]
[1757081974901,2.29334046,4360.5,4356.3,2.29552601]
[1757081974902,0.26692029,4359.2,4356.3,2.29552601]
[1757081975071,0.26692029,4358.9,4356.4,1.6515526]
[1757081975267,0.26692029,4359.2,4356.5,1.3428]
[1757081975590,0.26692029,4359.2,4359.1,0.1144]
[1757081975795,0.26692029,4359.7,4359.1,0.1144]
[1757081976003,0.26692029,4359.4,4359.1,0.1144]
[1757081976171,0.025,4359.8,4359.7,2.2937358]
[1757081976664,0.26692029,4361.3,4360.7,2.2932098]
[1757081976864,0.26692029,4361.8,4359.9,2.29363058]
[1757081977170,0.26692029,4362.0,4361.9,2.29257892]
[1757081977489,0.26692029,4362.5,4362.4,2.29231615]
[1757081977689,0.26692029,4363.0,4360.8,0.4367]
[1757081977892,0.26692029,4363.0,4362.1,2.29246492]
[1757081978092,0.26692029,4362.4,4360.9,0.61527]
[1757081978400,0.26692029,4363.3,4361.0,1.3428]
[1757081978767,0.025,4363.8,4363.7,2.29163324]
[1757081979204,0.26692029,4363.3,4363.2,2.29189585]
[1757081979505,0.26692029,4362.8,4362.7,2.29215852]
[1757081979704,0.26692029,4363.3,4361.7,2.29268404]
[1757081980000,0.26692029,4363.3,4361.6,0.4483]
[1757081980001,0.26692029,4362.4,4361.2,4.8815447]
[1757081980161,0.26692029,4362.4,4361.2,1.69]
[1757081980562,0.26692029,4362.4,4361.3,0.8986]
[1757081980763,0.025,4363.8,4361.6,2.29273661]
[1757081980995,0.025,4363.8,4363.7,2.29163324]
[1757081981197,0.025,4363.8,4363.3,1.69]
[1757081981399,0.26692029,4363.7,4362.8,2.5886]
[1757081981566,0.26692029,4363.4,4363.0,2.29196625]
[1757081981776,0.26692029,4363.4,4362.8,1.69]
[1757081982075,0.26692029,4360.1,4359.8,0.025]
[1757081982265,0.26692029,4360.5,4359.8,0.025]
[1757081982864,0.26692029,4361.1,4360.2,2.2934551]
[1757081983163,0.4607,4362.5,4359.8,0.025]
[1757081983164,0.26692029,4360.5,4359.8,0.025]
[1757081983363,0.4607,4362.5,4359.9,1.3469]
[1757081983649,0.26692029,4360.8,4359.8,0.025]
[1757081983763,0.26692029,4360.4,4359.8,0.025]
[1757081984377,0.26692029,4360.7,4359.8,0.025]
[1757081984576,0.26692029,4361.7,4359.9,0.4483]
[1757081984783,0.26692029,4361.4,4360.1,2.29352537]
[1757081985098,0.001,4362.8,4360.4,3.0]
[1757081985300,0.001,4362.8,4362.7,2.29215852]
[1757081985499,0.001,4362.8,4361.9,1.69]
[1757081985701,0.26692029,4361.6,4361.0,0.8986]
[1757081986002,0.26692029,4359.9,4359.8,0.025]
[1757081986192,0.24192029,4359.9,4359.8,0.025]
[1757081986764,0.70182029,4359.9,4359.8,0.025]
[1757081986971,6.87985087,4359.9,4359.8,0.025]
[1757081987170,0.24112029,4358.5,4358.3,2.29445713]
[1757081987371,0.24112029,4359.2,4358.3,1.3469]
[1757081987566,0.24112029,4359.2,4356.8,0.025]
[1757081987567,1.69,4360.5,4358.4,0.13469]
[1757081987803,0.24112029,4359.2,4357.7,1.69]
[1757081987978,0.24112029,4358.3,4357.2,0.8986]
[1757081988177,0.48937301,4359.5,4357.2,0.8986]
[1757081988178,0.24112029,4357.8,4357.2,3.19360308]
[1757081988383,0.24112029,4357.8,4357.7,2.29478853]
[1757081988807,1.69,4360.3,4357.7,0.8986]
[1757081989006,0.23612029,4358.2,4357.7,0.8986]
[1757081989205,0.23612029,4357.6,4356.7,0.8986]
[1757081989374,0.23612029,4357.6,4356.7,3.19390964]
[1757081989583,0.23612029,4357.3,4356.5,1.69]
[1757081989907,0.23612029,4357.7,4356.4,0.4483]
[1757081990082,0.23612029,4357.3,4356.4,2.29546888]
[1757081990283,1.69,4358.9,4357.9,2.29467696]
[1757081990487,1.69,4358.9,4356.2,0.4483]
[1757081990675,1.69,4358.9,4356.3,2.29550184]
[1757081990876,0.23612029,4357.5,4357.4,2.29494652]
[1757081991287,0.23612029,4357.1,4355.7,2.29582364]
[1757081991519,0.23612029,4357.1,4356.3,2.29551302]
[1757081991721,1.12052029,4357.1,4356.1,2.2956264]
[1757081991887,0.4607,4357.0,4355.4,2.29599525]
[1757081992088,0.4607,4357.0,4355.5,2.2959029]
[1757081992322,0.23612029,4357.1,4354.9,2.29624863]
[1757081992628,0.23612029,4357.1,4355.4,0.8986]
[1757081992927,0.23612029,4356.9,4356.8,2.32024924]
[1757081993131,0.23612029,4356.9,4356.8,0.025]
[1757081993297,0.23612029,4357.2,4356.8,0.025]
[1757081993490,0.23612029,4357.0,4356.9,2.52724095]
[1757081993692,0.23612029,4357.3,4357.2,2.29505186]
[1757081993911,0.23612029,4357.9,4357.2,1.3469]
[1757081994219,0.23612029,4357.3,4357.2,2.29505186]
[1757081994590,0.23612029,4357.9,4356.8,0.025]
[1757081994792,0.23612029,4357.7,4357.2,2.29505186]
[1757081994986,3.0351,4360.1,4357.3,1.3469]
[1757081995337,0.02866972,4360.0,4357.4,2.29494652]
[1757081995623,1.69,4360.1,4359.4,2.29388745]
[1757081995995,2.17936906,4360.1,4357.8,1.69]
[1757081996247,0.33672791,4360.0,4358.0,2.29463056]
[1757081996423,0.33672791,4360.0,4357.9,0.169]
[1757081996826,0.1144,4359.9,4359.2,0.1144]
[1757081996989,0.1144,4359.5,4358.8,0.1144]
[1757081997194,0.1144,4359.9,4359.2,0.1144]
[1757081997396,0.1144,4359.9,4359.2,2.40838432]
[1757081997612,2.40777263,4360.4,4359.6,0.1144]
[1757081997925,2.29325889,4360.7,4359.2,0.1144]
[1757081997926,0.1144,4359.9,4359.2,0.1144]
[1757081998292,0.1144,4359.9,4357.9,0.169]
[1757081998293,0.1144,4359.3,4358.5,0.1144]
[1757081998494,0.1144,4358.9,4358.2,0.1144]
[1757081998925,0.1144,4358.9,4358.3,2.29442235]
[1757081999112,0.1144,4358.9,4358.2,0.1144]
[1757081999635,5.626,4359.8,4357.4,0.8986]
[1757081999943,0.1144,4359.1,4358.4,0.1144]
[1757082000122,0.1144,4359.1,4358.6,2.2942801]
[1757082000298,1.69,4359.9,4358.6,0.24086801]
[1757082000627,0.35962981,4361.7,4360.7,2.2932098]
[1757082000928,0.001,4362.8,4360.7,3.0369]
[1757082001126,1.3451,4362.7,4360.7,1.69]
[1757082001507,0.02865263,4362.6,4360.8,0.4483]
[1757082001709,0.02865263,4362.6,4360.9,2.29310463]
[1757082001898,0.02865263,4362.6,4360.8,1.3469]
[1757082001899,0.001,4362.8,4361.0,0.36400046]
[1757082002093,0.001,4362.8,4361.6,2.29270604]
[1757082002317,0.001,4362.8,4361.2,1.69]
[1757082002524,0.001,4362.8,4362.7,2.29215852]
[1757082002722,0.001,4362.8,4361.7,2.29263744]
[1757082002927,0.001,4362.8,4362.7,2.29215852]
[1757082003124,0.001,4362.8,4362.7,2.75059746]
[1757082003331,1e-08,4363.8,4363.2,2.29189585]
[1757082003533,1e-08,4365.8,4365.7,2.29058341]
[1757082003707,5.04664883,4367.8,4366.7,2.29005885]
[1757082003901,5.04664883,4367.8,4366.9,2.28995397]
[1757082004100,5.04664883,4367.8,4366.9,2.74795525]
[1757082004313,5.04664883,4367.8,4366.9,2.28995397]
[1757082004512,5.04664883,4367.8,4366.9,3.18855397]
[1757082004735,5.04664883,4367.8,4366.2,1.3469]
[1757082004935,5.04664883,4367.8,4366.9,2.28995397]
[1757082005136,5.04664883,4367.8,4365.5,5.7313]
[1757082005338,5.04664883,4367.8,4365.9,0.4483]
[1757082005704,5.04664883,4367.8,4365.8,0.74213]
[1757082006324,5.04664883,4367.8,4365.9,1.3469]
[1757082006551,0.025,4367.8,4365.9,1.3469]
[1757082006845,0.792,4366.9,4364.8,2.5876]
[1757082007004,0.001,4367.0,4364.9,0.25876]
[1757082007204,2.29000641,4366.8,4364.9,0.25876]
[1757082007403,0.792,4366.6,4364.6,2.29115424]
[1757082007626,0.82062508,4366.8,4364.5,1.689]
[1757082007842,0.792,4366.6,4364.5,1.689]
[1757082008033,1.37372704,4366.5,4363.5,1.689]
[1757082008234,1.3451,4366.5,4364.3,0.4483]
[1757082008442,0.001,4367.0,4364.5,3.0]
[1757082008605,0.001,4367.0,4364.7,2.2911082]
[1757082008805,0.001,4367.0,4364.9,2.29100323]
[1757082009033,0.793,4367.0,4364.8,1.689]
[1757082009334,2.29000494,4366.9,4365.5,2.29067071]
[1757082009543,0.47112508,4366.8,4364.8,1.689]
[1757082009706,2.29005885,4366.7,4364.8,4.24834299]
[1757082009908,0.02862639,4366.6,4364.8,1.957339]
[1757082010137,0.56891251,4366.8,4364.8,1.689]
[1757082010337,0.001,4367.0,4364.9,0.916]
[1757082010539,0.001,4367.0,4366.2,0.1144]
[1757082010540,2.28995397,4366.9,4366.2,0.1144]
[1757082010743,0.1144,4366.6,4365.9,0.1144]
[1757082010918,0.001,4367.0,4365.1,5.588]
[1757082011118,0.4435,4367.0,4365.2,0.69473]
[1757082011418,0.4435,4367.0,4365.8,0.025]
[1757082011419,0.792,4366.7,4365.8,0.025]
[1757082011621,2.29047848,4365.9,4365.8,0.025]
[1757082011845,0.792,4366.5,4365.8,0.025]
[1757082012143,3.62287848,4365.9,4365.8,0.025]
[1757082012343,0.8899,4366.7,4365.8,0.025]
[1757082012644,0.4425,4366.4,4365.8,0.025]
[1757082012832,0.0286277,4366.4,4365.8,0.025]
[1757082013031,3.08247848,4365.9,4365.8,0.025]
[1757082013414,4.41487848,4365.9,4365.8,0.025]
[1757082013615,4.41487848,4365.9,4364.8,0.025]
[1757082013616,2.29100323,4364.9,4364.8,0.025]
[1757082013918,2.29074324,4365.4,4364.8,0.025]
[1757082014119,2.29084107,4365.3,4364.8,0.025]
[1757082014451,0.4425,4366.6,4364.8,0.025]
[1757082014646,2.29076327,4365.4,4364.8,0.025]
[1757082014963,0.8899,4365.3,4364.8,0.025]
[1757082015165,0.0286277,4366.4,4364.8,0.025]
[1757082015321,0.4425,4366.9,4364.8,0.025]
[1757082015516,0.4425,4366.9,4364.9,0.916]
[1757082016048,0.001,4367.0,4365.0,0.4433]
[1757082016348,0.025,4366.8,4364.9,0.916]
[1757082016650,0.025,4366.8,4364.9,2.29100323]
[1757082016651,2.29041916,4366.1,4364.9,2.29100323]
[1757082016948,0.025,4366.8,4364.9,0.916]
[1757082017151,0.025,4366.8,4364.9,4.89499428]
[1757082017450,0.025,4366.8,4365.0,0.93529943]
[1757082017818,0.025,4366.8,4365.2,2.29084578]
[1757082018045,0.025,4366.8,4365.1,1.3593]
[1757082018647,0.02862573,4366.7,4365.1,0.916]
[1757082018816,0.02862573,4366.7,4364.9,1.688]
[1757082019017,0.792,4366.5,4364.9,1.688]
[1757082019216,2.29054196,4365.8,4364.9,1.688]
[1757082019447,2.2906468,4365.6,4364.8,0.025]
[1757082019649,2.29053094,4365.8,4364.8,0.025]
[1757082019865,2.29060312,4365.7,4364.8,0.025]
[1757082020014,0.0286277,4366.4,4364.8,2.31601665]
[1757082020217,0.025,4366.8,4364.9,1.3593]
[1757082020420,0.025,4366.8,4366.0,2.29042429]
[1757082020718,0.025,4366.8,4365.2,5.558]
[1757082020915,0.025,4366.8,4365.0,2.604]
[1757082021114,0.02862573,4366.7,4365.0,2.604]
[1757082021314,1.2345,4366.6,4364.8,0.025]
[1757082021519,2.29026864,4366.3,4364.8,0.025]
[1757082021739,2.29100323,4364.9,4364.8,0.025]
[1757082022020,2.29053094,4365.8,4365.0,0.004]
[1757082022229,2.29089826,4365.1,4365.0,0.004]
[1757082022428,3.08249321,4365.9,4365.0,0.004]
[1757082022640,2.29083474,4365.3,4365.0,0.004]
[1757082022817,0.792,4365.9,4365.0,0.004]
[1757082023023,2.29082652,4365.3,4365.0,0.004]
[1757082023251,0.76044,4365.9,4365.0,0.0018]
[1757082023758,0.4425,4366.1,4365.0,0.0018]
[1757082024427,1.688,4366.2,4365.0,0.0018]
[1757082024617,2.29058389,4365.7,4365.0,0.0018]
[1757082024817,2.31901574,4366.1,4365.0,0.0018]
[1757082025024,0.793,4367.0,4365.0,0.0018]
[1757082025025,0.4685,4366.8,4365.0,0.0018]
[1757082025223,0.026,4366.8,4365.3,2.2907933]
[1757082025434,0.026,4366.8,4366.7,2.29005885]
[1757082025656,0.026,4366.8,4366.7,3.64935885]
[1757082025823,0.026,4366.8,4366.7,2.49970481]
[1757082026024,0.026,4366.8,4366.7,0.20964596]
[1757082026229,1.38702508,4366.8,4365.5,0.20964596]
[1757082026425,1.38702508,4366.8,4365.6,2.50027619]
[1757082026426,0.026,4366.8,4365.6,2.50027619]
[1757082026664,0.026,4366.8,4365.7,0.20964596]
[1757082026840,0.47112573,4366.7,4364.4,5.51]
[1757082027041,0.026,4366.8,4365.2,2.2908345]
[1757082027242,3.08211129,4366.6,4365.0,0.0018]
[1757082027456,0.47112704,4366.5,4365.0,0.0018]
[1757082027681,0.4425,4366.5,4365.0,0.0018]
[1757082027955,2.29059592,4365.7,4365.0,0.0018]
[1757082028156,2.29021619,4366.4,4365.0,0.0018]
[1757082028358,0.026,4366.8,4365.0,0.0018]
[1757082028659,0.28632301,4366.8,4365.4,2.29073213]
[1757082028861,2.54772299,4366.8,4365.0,0.0018]
[1757082029061,2.29045902,4366.0,4365.0,0.0018]
[1757082029264,0.792,4366.6,4365.0,0.0018]
[1757082029558,0.026,4366.8,4365.0,0.0018]
[1757082029857,0.026,4366.8,4365.1,1.59108244]
[1757082030057,0.026,4366.8,4366.0,2.29037362]
[1757082030358,2.29089826,4365.1,4365.0,0.0018]
[1757082030560,0.02863491,4365.3,4365.0,0.0018]
[1757082030733,3.62329826,4365.1,4365.0,0.0018]
[1757082030931,3.98849164,4365.1,4365.0,0.0018]
[1757082031258,0.792,4365.7,4365.0,0.0018]
[1757082031435,2.73339826,4365.1,4365.0,0.0018]
[1757082032151,2.29089826,4365.1,4365.0,0.0018]
[1757082032890,2.29076898,4365.4,4365.0,0.0018]
[1757082033071,0.4425,4367.7,4365.0,1.3611]
[1757082033246,0.1012,4366.8,4365.1,0.13861]
[1757082033578,0.1012,4366.8,4365.2,1.3593]
[1757082033873,0.1012,4366.8,4365.3,8.5233]
[1757082034076,0.1012,4366.8,4365.3,3.0473]
[1757082034377,0.1012,4366.8,4365.3,2.604]
[1757082034677,0.1012,4366.8,4365.3,1.688]
[1757082035065,2.29005885,4366.7,4365.3,1.688]
[1757082035274,2.29029354,4366.3,4365.3,1.688]
[1757082035474,2.29011202,4366.6,4365.5,2.29065313]
[1757082035644,2.39125579,4366.8,4365.4,3.20669057]
[1757082035981,0.1012,4366.8,4365.4,0.916]
[1757082036155,2.29014943,4366.6,4365.5,2.29067038]
[1757082036478,2.39124967,4366.8,4365.5,2.29066655]
[1757082036799,0.1012,4366.8,4365.4,0.916]
[1757082037144,0.1012,4366.8,4365.5,5.8833]
[1757082037447,0.1012,4366.8,4365.6,1.3593]
[1757082037646,0.1012,4366.8,4365.7,5.435]
[1757082037870,0.1012,4366.8,4366.7,2.29005885]
[1757082038394,0.1012,4366.8,4366.7,3.64935885]
[1757082038563,0.1012,4366.8,4366.7,4.41210721]
[1757082038755,0.1012,4366.8,4366.7,9.83910721]
[1757082039885,1e-08,4366.8,4366.7,9.83910721]
[1757082040071,1e-08,4366.8,4366.7,13.00759411]
[1757082040283,0.001,4367.9,4367.8,2.28948211]
[1757082040463,0.001,4367.9,4367.8,9.84438527]
[1757082040670,0.025,4368.8,4368.7,2.28901046]
[1757082040982,0.025,4369.8,4368.7,5.405]
[1757082041192,0.025,4369.8,4369.7,2.28848662]
[1757082041673,0.025,4369.8,4369.7,0.9287]
[1757082041992,2.28869612,4369.3,4365.0,0.4337]
[1757082042151,12.38820255,4367.8,4365.0,0.4337]
[1757082042461,0.444,4367.9,4365.1,3.479]
[1757082042664,0.02861852,4367.8,4365.8,0.025]
[1757082042895,0.444,4367.9,4365.8,0.025]
[1757082043082,0.1144,4366.9,4366.2,0.1144]
[1757082043382,3.444,4367.9,4366.1,2.29032511]
[1757082043383,2.73343303,4367.9,4366.1,2.29032511]
[1757082043583,0.444,4367.9,4366.0,2.29040846]
[1757082043798,2.28990276,4367.0,4365.8,0.025]
[1757082043954,2.28958695,4367.6,4365.8,0.025]
[1757082044156,0.444,4367.9,4365.9,5.436]
[1757082044356,2.28948211,4367.8,4365.9,5.436]
[1757082044584,2.28964919,4367.5,4366.0,2.29038181]
[1757082044789,2.28948287,4367.8,4366.3,2.29021793]
[1757082044959,0.444,4367.9,4366.3,2.29023961]
[1757082045296,0.444,4367.9,4365.9,5.436]
[1757082045485,0.4448,4368.8,4365.9,5.436]
[1757082045652,0.4448,4368.8,4366.7,2.29001866]
[1757082045853,0.4448,4368.8,4366.5,2.6157]
[1757082045854,2.28932749,4368.1,4366.5,2.6157]
[1757082046055,0.47341721,4368.0,4366.5,1.687]
[1757082046383,13.77290255,4367.9,4365.8,0.025]
[1757082046685,3.0,4367.7,4365.8,0.025]
[1757082046985,2.29047848,4365.9,4365.8,0.025]
[1757082047351,0.02862966,4366.1,4365.8,0.025]
[1757082047555,2.29047848,4365.9,4365.8,0.025]
[1757082047791,2.29041201,4366.1,4365.8,0.025]
[1757082047970,0.9399,4366.7,4365.8,0.025]
[1757082048456,2.29035787,4366.2,4365.8,0.025]
[1757082048658,2.29027768,4366.3,4365.8,0.025]
[1757082048988,0.4448,4366.8,4365.8,0.025]
[1757082049586,2.73480835,4366.8,4365.8,0.025]
[1757082049796,0.16769772,4367.1,4365.8,0.2565627]
[1757082050090,0.9399,4368.0,4365.8,0.025]
[1757082050298,0.9399,4368.0,4366.0,2.29042601]
[1757082050694,2.28953015,4367.8,4366.9,2.28995132]
[1757082050898,0.9399,4368.0,4366.2,5.387]
[1757082051196,1.3847,4368.9,4366.3,0.4319]
[1757082051400,0.16708197,4368.8,4366.0,5.382]
[1757082051574,2.28979796,4367.2,4366.3,2.29026306]
[1757082051769,0.4448,4367.6,4366.0,5.382]
[1757082052098,0.4448,4367.6,4365.8,0.025]
[1757082052895,2.45700656,4369.2,4365.0,0.0018]
[1757082052896,2.29089826,4365.1,4365.0,0.0018]
[1757082053093,25.79519064,4365.1,4365.0,0.0018]
[1757082053256,27.17989064,4365.1,4365.0,0.0018]
[1757082053464,6.55390539,4365.1,4365.0,0.0018]
[1757082053664,5.36259826,4365.1,4365.0,0.0018]
[1757082053961,3.97789826,4365.1,4365.0,0.0018]
[1757082054177,2.29076986,4365.4,4365.0,0.0018]
[1757082054466,0.1144,4365.3,4365.0,0.0018]
[1757082054989,0.4448,4365.3,4365.0,0.0018]
[1757082055187,13.35673353,4365.9,4365.0,0.0018]
[1757082055381,2.29043917,4366.0,4365.0,0.0018]
[1757082055579,0.17454791,4366.5,4365.1,2.29085744]
[1757082055791,13.32810255,4366.7,4365.0,0.0018]
[1757082055979,0.02862639,4366.6,4365.0,0.0018]
[1757082056180,13.32810255,4366.7,4365.0,0.0018]
[1757082056381,2.2895315,4367.8,4365.2,3.0]
[1757082056382,0.9399,4367.8,4365.2,3.0]
[1757082056582,0.4448,4367.7,4365.1,0.9287]
[1757082056788,2.29004877,4366.8,4365.7,2.29057656]
[1757082056972,0.4448,4367.6,4366.3,2.29026631]
[1757082057171,0.4448,4367.6,4365.8,0.22905766]
[1757082057372,0.4448,4367.6,4365.7,0.9287]
[1757082057572,0.02862049,4367.5,4365.2,3.9049]
[1757082057785,0.02862049,4367.5,4365.2,6.19574173]
[1757082058102,2.28993817,4367.0,4366.0,2.29042235]
[1757082058302,2.31825987,4367.5,4365.3,5.386]
[1757082058488,2.31825987,4367.5,4366.0,2.29037563]
[1757082058489,2.28989752,4367.1,4366.0,2.29037563]
[1757082058832,0.41600372,4367.5,4365.4,0.81087945]
[1757082058833,0.41600372,4367.5,4365.6,2.29059912]
[1757082059004,0.792,4367.4,4365.4,0.81087945]
[1757082059195,2.28979666,4367.2,4365.4,0.81087945]
[1757082059395,0.02862311,4367.1,4365.6,2.29062672]
[1757082059594,2.29010049,4366.7,4365.7,2.29058185]
[1757082059789,2.29010049,4366.7,4365.5,2.29068835]
[1757082060008,12.77558578,4367.5,4365.5,2.26790797]
[1757082060305,0.4448,4367.6,4365.5,2.26790797]
[1757082060306,0.4448,4367.6,4365.6,0.9287]
[1757082060513,0.001,4367.9,4366.4,2.29016662]
[1757082060673,0.001,4367.9,4367.7,2.28951]
[1757082060869,0.001,4367.9,4367.8,2.28948211]
[1757082061211,0.001,4367.9,4366.6,1.3606]
[1757082061421,0.001,4367.9,4367.6,2.28955173]
[1757082061587,0.001,4367.9,4367.5,2.2896367]
[1757082061791,0.001,4367.9,4366.7,1.75476]
[1757082062318,2.29044429,4367.9,4366.5,16.187]
[1757082062522,0.001,4367.9,4366.6,0.9287]
[1757082062743,0.001,4367.9,4366.7,2.29005885]
[1757082062916,0.001,4367.9,4367.8,2.28948211]
[1757082063285,0.001,4367.9,4367.8,3.21818211]
[1757082063510,0.001,4367.9,4367.8,4.30365829]
[1757082063721,0.001,4367.9,4366.8,0.9287]
[1757082063979,1.3847,4367.8,4366.0,0.9287]
[1757082064203,1.3847,4367.8,4365.4,2.49787945]
[1757082064204,0.02861918,4367.7,4365.5,14.5]
[1757082064431,1.91385217,4367.6,4365.6,1.79265794]
[1757082067127,0.16867992,4366.6,4365.7,14.5]
[1757082067336,0.16867992,4366.6,4365.6,1.687]
[1757082067337,0.4448,4366.5,4365.6,1.687]
[1757082067499,2.29100323,4364.9,4362.3,0.4319]
[1757082067818,12.4628968,4364.9,4362.4,0.9287]
[1757082068033,12.4628968,4364.9,4362.6,2.29220043]
[1757082068198,0.17150704,4367.3,4364.8,5.1626]
[1757082068399,0.17150704,4367.3,4364.9,1.3606]
[1757082068602,0.17150704,4367.3,4365.0,2.29095074]
[1757082068895,2.29044701,4367.9,4365.3,2.2907933]
[1757082069112,5.381,4367.8,4365.4,1.3063]
[1757082069314,5.377,4367.9,4365.7,2.29058341]
[1757082069631,2.28958695,4367.6,4365.5,0.8607]
[1757082069802,2.29032852,4366.2,4365.2,2.29079808]
[1757082069999,5.38,4366.3,4364.8,0.025]
[1757082070219,2.29056796,4365.8,4364.8,0.025]
[1757082070417,2.29063588,4365.6,4364.8,0.025]
[1757082070636,3.0,4365.1,4364.8,0.025]
[1757082070848,6.08300323,4364.9,4364.8,0.025]
[1757082071007,10.66800323,4364.9,4364.8,0.025]
[1757082071206,11.10850323,4364.9,4364.8,0.025]
[1757082071403,10.66200323,4364.9,4364.8,0.025]
[1757082071830,3.97795074,4365.0,4364.8,0.025]
[1757082071831,0.4405,4365.6,4364.8,0.025]
[1757082072053,1.687,4365.5,4364.8,0.025]
[1757082072252,2.2907933,4365.3,4364.8,0.025]
[1757082072422,2.29100323,4364.9,4364.8,0.025]
[1757082072749,2.31964077,4364.9,4364.8,0.025]
[1757082072909,5.73150323,4364.9,4364.8,0.025]
[1757082073307,5.29100323,4364.9,4364.8,0.025]
[1757082073632,8.09150323,4364.9,4364.8,0.025]
[1757082073817,12.92174401,4364.9,4364.8,0.025]
[1757082074011,3.0831607,4364.6,4364.5,0.004]
[1757082074206,3.792,4364.6,4363.8,0.025]
[1757082074407,0.792,4363.9,4363.8,0.025]
[1757082074645,7.77152822,4363.9,4363.8,0.025]
[1757082074845,9.51832336,4363.9,4363.8,0.025]
[1757082075019,13.18020255,4362.9,4361.8,0.025]
[1757082075206,3.0,4362.7,4361.8,0.025]
[1757082075407,3.792,4362.5,4361.8,0.025]
[1757082075609,3.0,4362.5,4361.8,0.025]
[1757082075845,2.29257892,4361.9,4361.8,0.025]
[1757082076051,11.45823615,4361.9,4361.8,0.025]
[1757082076209,12.68117892,4361.9,4361.8,0.025]
[1757082076409,3.08473661,4361.6,4361.5,1e-08]
[1757082076716,11.45539581,4361.6,4361.5,1e-08]
[1757082076936,14.80852412,4361.6,4361.5,1e-08]
[1757082077123,2.29363058,4359.9,4358.8,0.025]
[1757082077311,10.14030096,4359.9,4358.8,0.025]
[1757082077513,10.55213058,4359.9,4358.8,0.025]
[1757082077725,9.31863058,4359.9,4358.8,0.025]
[1757082078045,0.4405,4360.6,4358.8,0.025]
[1757082078046,0.1144,4360.0,4359.3,0.1144]
[1757082078406,5.35867038,4359.9,4358.9,0.8607]
[1757082078611,0.792,4360.7,4358.9,0.9751]
[1757082078811,2.29351705,4360.2,4359.0,2.29410109]
[1757082079023,1.688,4360.7,4359.1,2.29401492]
[1757082079373,1.688,4360.7,4358.8,0.025]
[1757082079374,0.1144,4360.3,4360.2,2.29347277]
[1757082079522,1.8024,4360.7,4359.9,0.1144]
[1757082079869,1.688,4360.7,4359.3,0.8607]
[1757082080171,0.792,4360.5,4359.3,0.8607]
[1757082080338,0.792,4360.3,4358.8,0.025]
[1757082080523,2.29352537,4360.1,4358.8,0.025]
[1757082080863,3.08563058,4359.9,4358.8,0.025]
[1757082081065,8.40663058,4359.9,4358.8,0.025]